[Event "Late-Titled-Tuesday-Blitz-October-17-2023"]
[Site "Chess.com"]
[Date "2023.10.17"]
[Round "8"]
[White "Chempiblinka"]
[Black "Lion_DL"]
[Result "1-0"]
[WhiteElo "2324"]
[BlackElo "2439"]
[TimeControl "180+1"]
[EndTime "15:27:45 PDT"]
[Termination "Chempiblinka won on time"]

1. Nf3 {[%clk 0:03:00.3]} 1... d5 {[%clk 0:02:57.9]} 2. g3 {[%clk 0:03:00.8]}
2... c6 {[%clk 0:02:56.8]} 3. Bg2 {[%clk 0:03:01.3]} 3... Bf5 {[%clk 0:02:56.7]}
4. c4 {[%clk 0:03:02]} 4... e6 {[%clk 0:02:55.5]} 5. cxd5 {[%clk 0:03:02.1]}
5... exd5 {[%clk 0:02:55.2]} 6. O-O {[%clk 0:03:02.8]} 6... Be7 {[%clk
0:02:53.1]} 7. d3 {[%clk 0:03:02.3]} 7... Nf6 {[%clk 0:02:52.8]} 8. Nc3 {[%clk
0:02:51.7]} 8... O-O {[%clk 0:02:52.1]} 9. e4 {[%clk 0:02:39.6]} 9... Bg4 {[%clk
0:02:47.9]} 10. h3 {[%clk 0:02:33.8]} 10... Bh5 {[%clk 0:02:45.8]} 11. g4 {[%clk
0:02:30.7]} 11... Bg6 {[%clk 0:02:45.5]} 12. Nd4 {[%clk 0:02:27.1]} 12... dxe4
{[%clk 0:02:17.9]} 13. dxe4 {[%clk 0:02:26.7]} 13... h5 {[%clk 0:02:18.3]} 14.
g5 {[%clk 0:02:15.6]} 14... Ne8 {[%clk 0:02:11.8]} 15. f4 {[%clk 0:02:15.4]}
15... Bc5 {[%clk 0:01:48.8]} 16. Be3 {[%clk 0:02:13.4]} 16... f5 {[%clk
0:01:49.3]} 17. Nxf5 {[%clk 0:01:47.8]} 17... Qxd1 {[%clk 0:01:40.9]} 18. Raxd1
{[%clk 0:01:38.1]} 18... Rxf5 {[%clk 0:01:41.2]} 19. exf5 {[%clk 0:01:15.3]}
19... Bxe3+ {[%clk 0:01:39.2]} 20. Kh1 {[%clk 0:01:15.6]} 20... Bxf5 {[%clk
0:01:19.8]} 21. Rde1 {[%clk 0:01:15.7]} 21... Nd7 {[%clk 0:01:15.4]} 22. Rxe3
{[%clk 0:01:15.3]} 22... Nf8 {[%clk 0:01:11.1]} 23. Ne4 {[%clk 0:01:02.4]} 23...
Ng6 {[%clk 0:01:09.2]} 24. Ng3 {[%clk 0:00:57.9]} 24... Nh4 {[%clk 0:01:01.3]}
25. Nxh5 {[%clk 0:00:30.7]} 25... Bg6 {[%clk 0:01:00.8]} 26. Ng3 {[%clk
0:00:27.9]} 26... Nd6 {[%clk 0:01:01.4]} 27. Re6 {[%clk 0:00:21.7]} 27... Ndf5
{[%clk 0:00:58.3]} 28. Nxf5 {[%clk 0:00:20.2]} 28... Bxf5 {[%clk 0:00:59]} 29.
Rd6 {[%clk 0:00:19.6]} 29... Re8 {[%clk 0:00:57.4]} 30. Rfd1 {[%clk 0:00:13.1]}
30... Re2 {[%clk 0:00:56.5]} 31. Rd8+ {[%clk 0:00:11.9]} 31... Kh7 {[%clk
0:00:53.8]} 32. R1d2 {[%clk 0:00:08]} 32... Re1+ {[%clk 0:00:48.3]} 33. Kh2
{[%clk 0:00:08.2]} 33... Ng6 {[%clk 0:00:41.9]} 34. Bf3 {[%clk 0:00:06.9]} 34...
Nxf4 {[%clk 0:00:39.1]} 35. Bg4 {[%clk 0:00:06.7]} 35... Be4 {[%clk 0:00:37.4]}
36. Kg3 {[%clk 0:00:05.1]} 36... Nd5 {[%clk 0:00:36]} 37. h4 {[%clk 0:00:04.1]}
37... Re3+ {[%clk 0:00:35.9]} 38. Kf2 {[%clk 0:00:03.6]} 38... Rd3 {[%clk
0:00:26.2]} 39. Rxd3 {[%clk 0:00:03.3]} 39... Bxd3 {[%clk 0:00:27.1]} 40. h5
{[%clk 0:00:03.9]} 40... a5 {[%clk 0:00:20.6]} 41. g6+ {[%clk 0:00:04.1]} 41...
Kh6 {[%clk 0:00:20.6]} 42. Bf3 {[%clk 0:00:04.3]} 42... Nf6 {[%clk 0:00:19.7]}
43. Rh8+ {[%clk 0:00:04.2]} 43... Kg5 {[%clk 0:00:19.9]} 44. Rb8 {[%clk
0:00:05.1]} 44... Ba6 {[%clk 0:00:18.2]} 45. Ra8 {[%clk 0:00:03.8]} 45... Nxh5
{[%clk 0:00:17.8]} 46. Bxc6 {[%clk 0:00:04.1]} 46... Kxg6 {[%clk 0:00:16.8]} 47.
Be4+ {[%clk 0:00:04.2]} 47... Kg5 {[%clk 0:00:16.8]} 48. Rb8 {[%clk 0:00:04.4]}
48... Nf4 {[%clk 0:00:14.4]} 49. Bxb7 {[%clk 0:00:05.3]} 49... Bc4 {[%clk
0:00:13.4]} 50. Bc6 {[%clk 0:00:04.5]} 50... Bxa2 {[%clk 0:00:12.7]} 51. Rb5+
{[%clk 0:00:05.2]} 51... Kg4 {[%clk 0:00:12.3]} 52. Rxa5 {[%clk 0:00:06.1]}
52... Be6 {[%clk 0:00:12]} 53. Bd7 {[%clk 0:00:06.8]} 53... g5 {[%clk
0:00:11.9]} 54. Bxe6+ {[%clk 0:00:06.5]} 54... Nxe6 {[%clk 0:00:12.8]} 55. Kg2
{[%clk 0:00:06.7]} 55... Nf4+ {[%clk 0:00:12.7]} 56. Kg1 {[%clk 0:00:05.9]}
56... Kh4 {[%clk 0:00:11.7]} 57. b4 {[%clk 0:00:05.9]} 57... g4 {[%clk
0:00:12.4]} 58. b5 {[%clk 0:00:06.2]} 58... g3 {[%clk 0:00:13]} 59. b6 {[%clk
0:00:06.3]} 59... Kh3 {[%clk 0:00:13.2]} 60. Rg5 {[%clk 0:00:03.8]} 60... Ne2+
{[%clk 0:00:13.2]} 61. Kf1 {[%clk 0:00:04.3]} 61... Kh4 {[%clk 0:00:12]} 62. Rg8
{[%clk 0:00:04.1]} 62... Nf4 {[%clk 0:00:10.1]} 63. Rh8+ {[%clk 0:00:03.4]}
63... Kg4 {[%clk 0:00:09.7]} 64. Rg8+ {[%clk 0:00:03.5]} 64... Kf3 {[%clk
0:00:10.2]} 65. Rxg3+ {[%clk 0:00:03.8]} 65... Kxg3 {[%clk 0:00:09.7]} 66. b7
{[%clk 0:00:04.7]} 66... Nd5 {[%clk 0:00:09.7]} 67. b8=Q+ {[%clk 0:00:04.8]}
67... Nf4 {[%clk 0:00:10.6]} 68. Ke1 {[%clk 0:00:04.2]} 68... Kf3 {[%clk
0:00:11.5]} 69. Qf8 {[%clk 0:00:03.6]} 69... Kg4 {[%clk 0:00:12.4]} 70. Kf2
{[%clk 0:00:03.4]} 70... Nh3+ {[%clk 0:00:11.6]} 71. Ke3 {[%clk 0:00:03.1]}
71... Ng5 {[%clk 0:00:12.5]} 72. Qg8 {[%clk 0:00:03.1]} 72... Kf5 {[%clk
0:00:12]} 73. Kd4 {[%clk 0:00:01.9]} 73... Ne6+ {[%clk 0:00:09.6]} 74. Ke3
{[%clk 0:00:01.7]} 74... Ng5 {[%clk 0:00:09.5]} 75. Qb8 {[%clk 0:00:02]} 75...
Ne6 {[%clk 0:00:09.6]} 76. Qd6 {[%clk 0:00:02]} 76... Kf6 {[%clk 0:00:08.5]} 77.
Qc6 {[%clk 0:00:02]} 77... Ke5 {[%clk 0:00:08.1]} 78. Qb5+ {[%clk 0:00:01.9]}
78... Kf6 {[%clk 0:00:08.2]} 79. Ke4 {[%clk 0:00:02.5]} 79... Ng5+ {[%clk
0:00:07.9]} 80. Kf4 {[%clk 0:00:03]} 80... Ne6+ {[%clk 0:00:08.7]} 81. Kg4
{[%clk 0:00:03.9]} 81... Ng7 {[%clk 0:00:08.4]} 82. Qd5 {[%clk 0:00:04]} 82...
Ne6 {[%clk 0:00:09]} 83. Qb5 {[%clk 0:00:03.5]} 83... Ng7 {[%clk 0:00:08.9]} 84.
Qg5+ {[%clk 0:00:04.2]} 84... Kf7 {[%clk 0:00:08.8]} 85. Qh6 {[%clk 0:00:03.9]}
85... Ne6 {[%clk 0:00:08.5]} 86. Kf5 {[%clk 0:00:04.3]} 86... Ng7+ {[%clk
0:00:08.2]} 87. Ke5 {[%clk 0:00:04.7]} 87... Ne8 {[%clk 0:00:08]} 88. Qh5+
{[%clk 0:00:04.3]} 88... Ke7 {[%clk 0:00:07.7]} 89. Qh7+ {[%clk 0:00:04.1]}
89... Kd8 {[%clk 0:00:06]} 90. Kd5 {[%clk 0:00:04.1]} 90... Nc7+ {[%clk
0:00:04.2]} 91. Kd6 {[%clk 0:00:04.2]} 91... Ne8+ {[%clk 0:00:04]} 92. Kc6
{[%clk 0:00:03.8]} 92... Nf6 {[%clk 0:00:03.3]} 93. Qf7 {[%clk 0:00:03.1]} 1-0

[Event "Late-Titled-Tuesday-Blitz-October-17-2023"]
[Site "Chess.com"]
[Date "2023.10.17"]
[Round "9"]
[White "Necromon"]
[Black "Mikasinski"]
[Result "0-1"]
[WhiteElo "2512"]
[BlackElo "2690"]
[TimeControl "180+1"]
[EndTime "15:36:14 PDT"]
[Termination "Mikasinski won by resignation"]

1. Nf3 {[%clk 0:03:00.9]} 1... Nf6 {[%clk 0:02:59.4]} 2. b3 {[%clk 0:03:00.1]}
2... g6 {[%clk 0:02:59.8]} 3. Bb2 {[%clk 0:03:00.6]} 3... Bg7 {[%clk 0:03:00.5]}
4. c4 {[%clk 0:03:01.1]} 4... O-O {[%clk 0:03:01]} 5. Nc3 {[%clk 0:03:01.6]}
5... d6 {[%clk 0:03:01.6]} 6. d4 {[%clk 0:02:58]} 6... Bf5 {[%clk 0:02:58.9]} 7.
g3 {[%clk 0:02:56]} 7... c5 {[%clk 0:02:57.6]} 8. Bg2 {[%clk 0:02:54.5]} 8...
Nc6 {[%clk 0:02:56]} 9. O-O {[%clk 0:02:45.9]} 9... cxd4 {[%clk 0:02:53.2]} 10.
Nxd4 {[%clk 0:02:46.2]} 10... Nxd4 {[%clk 0:02:53.9]} 11. Qxd4 {[%clk
0:02:46.5]} 11... Ne4 {[%clk 0:02:54.5]} 12. Qe3 {[%clk 0:02:46.7]} 12... Nc5
{[%clk 0:02:50.9]} 13. b4 {[%clk 0:02:36.6]} 13... Ne6 {[%clk 0:02:49.9]} 14.
Bxb7 {[%clk 0:02:35.7]} 14... Rb8 {[%clk 0:02:50]} 15. Bg2 {[%clk 0:02:15.8]}
15... Rxb4 {[%clk 0:02:48.6]} 16. Qd2 {[%clk 0:02:15]} 16... Rxc4 {[%clk
0:02:34.9]} 17. Nd5 {[%clk 0:02:14]} 17... Rc2 {[%clk 0:02:29.4]} 18. Qa5 {[%clk
0:01:58.6]} 18... Qxa5 {[%clk 0:02:28.4]} 0-1

[Event "Late-Titled-Tuesday-Blitz-October-17-2023"]
[Site "Chess.com"]
[Date "2023.10.17"]
[Round "9"]
[White "DarkAlekhine"]
[Black "Arash_Tahbaz"]
[Result "1-0"]
[WhiteElo "2737"]
[BlackElo "2900"]
[TimeControl "180+1"]
[EndTime "15:36:48 PDT"]
[Termination "DarkAlekhine won by resignation"]

1. e4 {[%clk 0:02:59.9]} 1... d5 {[%clk 0:02:58.6]} 2. exd5 {[%clk 0:02:59.2]}
2... Qxd5 {[%clk 0:02:59.5]} 3. Nc3 {[%clk 0:02:59.1]} 3... Qa5 {[%clk
0:03:00.1]} 4. d4 {[%clk 0:02:59.4]} 4... Nf6 {[%clk 0:03:00.2]} 5. Bc4 {[%clk
0:02:59.8]} 5... c6 {[%clk 0:03:00.5]} 6. Bd2 {[%clk 0:02:59.9]} 6... Bf5 {[%clk
0:03:00.6]} 7. Qe2 {[%clk 0:02:59.3]} 7... Nbd7 {[%clk 0:03:00.9]} 8. O-O-O
{[%clk 0:02:55.2]} 8... Qc7 {[%clk 0:03:00.8]} 9. Nf3 {[%clk 0:02:53.9]} 9... e6
{[%clk 0:03:01.2]} 10. Ne5 {[%clk 0:02:53.1]} 10... b5 {[%clk 0:02:59.3]} 11.
Bb3 {[%clk 0:02:51.8]} 11... h5 {[%clk 0:02:47.1]} 12. Rhe1 {[%clk 0:02:45.8]}
12... b4 {[%clk 0:02:42.6]} 13. Nxf7 {[%clk 0:02:07.7]} 13... Kxf7 {[%clk
0:02:42.4]} 14. Bxe6+ {[%clk 0:02:07.2]} 14... Bxe6 {[%clk 0:02:43.3]} 15. Qxe6+
{[%clk 0:02:07.6]} 15... Kg6 {[%clk 0:02:44.1]} 16. Ne2 {[%clk 0:02:07.6]} 16...
Bd6 {[%clk 0:02:41.8]} 17. g4 {[%clk 0:01:49.1]} 17... hxg4 {[%clk 0:02:36.1]}
18. Rg1 {[%clk 0:01:43]} 18... Rae8 {[%clk 0:02:35.3]} 19. Rxg4+ {[%clk
0:01:42.6]} 19... Kh5 {[%clk 0:02:15.9]} 20. Qf5+ {[%clk 0:01:40.3]} 1-0

[Event "Late-Titled-Tuesday-Blitz-October-17-2023"]
[Site "Chess.com"]
[Date "2023.10.17"]
[Round "9"]
[White "Jospem"]
[Black "FabianoCaruana"]
[Result "1-0"]
[WhiteElo "3147"]
[BlackElo "3109"]
[TimeControl "180+1"]
[EndTime "15:37:45 PDT"]
[Termination "Jospem won by resignation"]

1. e4 {[%clk 0:03:00.9]} 1... e5 {[%clk 0:02:59.9]} 2. Nf3 {[%clk 0:03:01.4]}
2... Nc6 {[%clk 0:03:00.5]} 3. Bb5 {[%clk 0:03:02]} 3... a6 {[%clk 0:03:01]} 4.
Ba4 {[%clk 0:03:02.2]} 4... Nf6 {[%clk 0:03:01.6]} 5. Nc3 {[%clk 0:03:02.4]}
5... b5 {[%clk 0:02:59.7]} 6. Bb3 {[%clk 0:03:02.3]} 6... Bc5 {[%clk 0:03:00.4]}
7. d3 {[%clk 0:03:02.7]} 7... d6 {[%clk 0:02:58.4]} 8. Nd5 {[%clk 0:03:01.1]}
8... h6 {[%clk 0:02:53.2]} 9. Be3 {[%clk 0:03:01.3]} 9... Bxe3 {[%clk
0:02:50.2]} 10. Nxe3 {[%clk 0:03:02.2]} 10... O-O {[%clk 0:02:49.2]} 11. c3
{[%clk 0:03:01.4]} 11... Ne7 {[%clk 0:02:48.7]} 12. O-O {[%clk 0:02:59.9]} 12...
Ng6 {[%clk 0:02:49]} 13. g3 {[%clk 0:02:53]} 13... Re8 {[%clk 0:02:48]} 14. Nd2
{[%clk 0:02:51.1]} 14... Be6 {[%clk 0:02:46.2]} 15. Bxe6 {[%clk 0:02:51.2]}
15... Rxe6 {[%clk 0:02:47.1]} 16. Qf3 {[%clk 0:02:44.8]} 16... c6 {[%clk
0:02:41.1]} 17. Rad1 {[%clk 0:02:42.2]} 17... d5 {[%clk 0:02:41.1]} 18. Nb3
{[%clk 0:02:28]} 18... Re8 {[%clk 0:02:41.1]} 19. Nc5 {[%clk 0:02:27.3]} 19...
a5 {[%clk 0:02:38]} 20. Nf5 {[%clk 0:02:21]} 20... Ra7 {[%clk 0:02:36]} 21. b3
{[%clk 0:02:12.7]} 21... Nd7 {[%clk 0:02:35.1]} 22. Nxd7 {[%clk 0:02:10.2]}
22... Rxd7 {[%clk 0:02:34.8]} 23. c4 {[%clk 0:02:01.8]} 23... bxc4 {[%clk
0:02:18.9]} 24. bxc4 {[%clk 0:02:00]} 24... Ne7 {[%clk 0:02:18.5]} 25. Ne3
{[%clk 0:01:59.5]} 25... dxe4 {[%clk 0:02:13.5]} 26. dxe4 {[%clk 0:02:00.4]}
26... Qc8 {[%clk 0:02:04.2]} 27. Rxd7 {[%clk 0:01:59]} 27... Qxd7 {[%clk
0:02:05.1]} 28. Rd1 {[%clk 0:01:59.2]} 28... Qe6 {[%clk 0:02:05]} 29. Rd2 {[%clk
0:01:56.7]} 29... Rb8 {[%clk 0:01:59.6]} 30. Qd1 {[%clk 0:01:56.5]} 30... Qg6
{[%clk 0:01:37.9]} 31. Rd8+ {[%clk 0:01:54.7]} 31... Rxd8 {[%clk 0:01:36.9]} 32.
Qxd8+ {[%clk 0:01:55.6]} 32... Kh7 {[%clk 0:01:37.4]} 33. Qxe7 {[%clk 0:01:56]}
33... Qxe4 {[%clk 0:01:37.7]} 34. Qxf7 {[%clk 0:01:45.9]} 1-0

[Event "Late-Titled-Tuesday-Blitz-October-17-2023"]
[Site "Chess.com"]
[Date "2023.10.17"]
[Round "9"]
[White "effefe"]
[Black "DawidCzerw"]
[Result "1-0"]
[WhiteElo "2355"]
[BlackElo "2512"]
[TimeControl "180+1"]
[EndTime "15:38:13 PDT"]
[Termination "effefe won by checkmate"]

1. d4 {[%clk 0:03:00.9]} 1... c5 {[%clk 0:03:00.2]} 2. d5 {[%clk 0:03:00.6]}
2... e5 {[%clk 0:03:00.3]} 3. c4 {[%clk 0:03:00.6]} 3... d6 {[%clk 0:03:00.9]}
4. Nc3 {[%clk 0:03:00.9]} 4... Be7 {[%clk 0:03:01.3]} 5. Nf3 {[%clk 0:02:59.2]}
5... Bg4 {[%clk 0:03:00.8]} 6. h3 {[%clk 0:02:50.5]} 6... Bxf3 {[%clk
0:03:00.6]} 7. gxf3 {[%clk 0:02:48.6]} 7... f5 {[%clk 0:03:01.5]} 8. e3 {[%clk
0:02:38.8]} 8... Nf6 {[%clk 0:03:01.1]} 9. Bd3 {[%clk 0:02:38.7]} 9... g6 {[%clk
0:03:00.6]} 10. Qc2 {[%clk 0:02:38.1]} 10... O-O {[%clk 0:03:00.7]} 11. Rg1
{[%clk 0:02:32.1]} 11... Kh8 {[%clk 0:03:00.4]} 12. Bd2 {[%clk 0:02:30.7]} 12...
Na6 {[%clk 0:02:59.8]} 13. a3 {[%clk 0:02:30.1]} 13... Nc7 {[%clk 0:02:59.5]}
14. O-O-O {[%clk 0:02:07.3]} 14... b5 {[%clk 0:02:58.6]} 15. Nxb5 {[%clk
0:02:06.3]} 15... Nxb5 {[%clk 0:02:58.2]} 16. cxb5 {[%clk 0:02:07.2]} 16... Nxd5
{[%clk 0:02:58.6]} 17. e4 {[%clk 0:01:57]} 17... Nf4 {[%clk 0:02:55.3]} 18. Bxf4
{[%clk 0:01:48.6]} 18... exf4 {[%clk 0:02:56.2]} 19. exf5 {[%clk 0:01:48.7]}
19... g5 {[%clk 0:02:56.6]} 20. Be4 {[%clk 0:01:41.8]} 20... Rb8 {[%clk
0:02:54.9]} 21. Bc6 {[%clk 0:01:42.1]} 21... Bf6 {[%clk 0:02:52.5]} 22. Rge1
{[%clk 0:01:39.7]} 22... a6 {[%clk 0:02:52.4]} 23. Re6 {[%clk 0:01:33.5]} 23...
axb5 {[%clk 0:02:52.3]} 24. Rdxd6 {[%clk 0:01:32.8]} 24... Qa5 {[%clk 0:02:43]}
25. Rxf6 {[%clk 0:01:18.9]} 25... b4 {[%clk 0:02:43.2]} 26. Rxf8+ {[%clk
0:01:13]} 26... Rxf8 {[%clk 0:02:44.1]} 27. Qd2 {[%clk 0:00:54.8]} 27... Qa6
{[%clk 0:02:36.8]} 28. Be4 {[%clk 0:00:43.5]} 28... Qc4+ {[%clk 0:02:34.7]} 29.
Kb1 {[%clk 0:00:33.9]} 29... bxa3 {[%clk 0:02:34.1]} 30. Qc3+ {[%clk 0:00:32.5]}
30... Qxc3 {[%clk 0:02:34.5]} 31. bxc3 {[%clk 0:00:33.4]} 31... Rb8+ {[%clk
0:02:31.4]} 32. Ka2 {[%clk 0:00:33.5]} 32... Rb2+ {[%clk 0:02:31.2]} 33. Kxa3
{[%clk 0:00:34.1]} 33... Rxf2 {[%clk 0:02:32.1]} 34. f6 {[%clk 0:00:34]} 34...
Kg8 {[%clk 0:02:32.3]} 35. Bd5+ {[%clk 0:00:31.4]} 35... Kf8 {[%clk 0:02:32.5]}
36. Rd8# {[%clk 0:00:31.3]} 1-0

[Event "Late-Titled-Tuesday-Blitz-October-17-2023"]
[Site "Chess.com"]
[Date "2023.10.17"]
[Round "9"]
[White "icy"]
[Black "kiwibobo"]
[Result "1-0"]
[WhiteElo "2403"]
[BlackElo "2297"]
[TimeControl "180+1"]
[EndTime "15:38:31 PDT"]
[Termination "icy won by resignation"]

1. Nf3 {[%clk 0:03:00.3]} 1... Nf6 {[%clk 0:02:59.8]} 2. g3 {[%clk 0:03:00.1]}
2... g6 {[%clk 0:02:59.9]} 3. Bg2 {[%clk 0:03:00.9]} 3... Bg7 {[%clk 0:03:00.4]}
4. O-O {[%clk 0:03:01.8]} 4... O-O {[%clk 0:03:00.2]} 5. d4 {[%clk 0:03:00.4]}
5... d5 {[%clk 0:03:00.3]} 6. c4 {[%clk 0:02:58.1]} 6... c6 {[%clk 0:03:00.4]}
7. cxd5 {[%clk 0:02:55.8]} 7... cxd5 {[%clk 0:03:01.3]} 8. Ne5 {[%clk
0:02:54.1]} 8... Bf5 {[%clk 0:03:01.1]} 9. Nc3 {[%clk 0:02:52.1]} 9... Ne4
{[%clk 0:03:01.5]} 10. Bf4 {[%clk 0:02:49.5]} 10... Nxc3 {[%clk 0:02:58.9]} 11.
bxc3 {[%clk 0:02:50.4]} 11... Nc6 {[%clk 0:02:59.4]} 12. Nxc6 {[%clk 0:02:51]}
12... bxc6 {[%clk 0:03:00.3]} 13. Qd2 {[%clk 0:02:47.4]} 13... Qb6 {[%clk
0:02:55.5]} 14. a4 {[%clk 0:02:41.3]} 14... e6 {[%clk 0:02:32.3]} 15. Bd6 {[%clk
0:02:40.1]} 15... Rfe8 {[%clk 0:02:28.2]} 16. Bc5 {[%clk 0:02:39.7]} 16... Qb3
{[%clk 0:02:27.1]} 17. Ra3 {[%clk 0:02:37.6]} 17... Qc4 {[%clk 0:02:24.5]} 18.
Re1 {[%clk 0:02:36.2]} 18... e5 {[%clk 0:02:24.5]} 19. e3 {[%clk 0:02:35.2]}
19... exd4 {[%clk 0:02:17.3]} 20. cxd4 {[%clk 0:02:36.1]} 20... a5 {[%clk
0:02:07.4]} 21. g4 {[%clk 0:02:20.2]} 21... Bxg4 {[%clk 0:02:00.6]} 22. Bf1
{[%clk 0:02:20.2]} 22... Qxf1+ {[%clk 0:01:37.1]} 23. Rxf1 {[%clk 0:02:16.4]}
23... Bf3 {[%clk 0:01:37.5]} 24. Rb1 {[%clk 0:02:14.7]} 24... Re4 {[%clk
0:01:35]} 25. h3 {[%clk 0:02:09.6]} 25... Rh4 {[%clk 0:01:25]} 26. Kh2 {[%clk
0:02:08.1]} 26... Bg4 {[%clk 0:01:22.6]} 27. Kg3 {[%clk 0:02:07.8]} 27... Bf5
{[%clk 0:01:07.1]} 28. Kxh4 {[%clk 0:02:04.3]} 28... Bxb1 {[%clk 0:01:07.2]} 29.
Rb3 {[%clk 0:02:01.8]} 29... Be4 {[%clk 0:01:01.6]} 30. Bd6 {[%clk 0:01:59.7]}
30... Bf6+ {[%clk 0:00:53.4]} 31. Kg3 {[%clk 0:01:58.5]} 31... Kg7 {[%clk
0:00:54.3]} 32. Rb8 {[%clk 0:01:56.2]} 32... Ra7 {[%clk 0:00:52.8]} 33. Bf8+
{[%clk 0:01:55.5]} 33... Kg8 {[%clk 0:00:53]} 34. Bh6+ {[%clk 0:01:55.9]} 1-0

[Event "Late-Titled-Tuesday-Blitz-October-17-2023"]
[Site "Chess.com"]
[Date "2023.10.17"]
[Round "9"]
[White "Mikhal867"]
[Black "miraitrunks"]
[Result "1-0"]
[WhiteElo "2418"]
[BlackElo "2205"]
[TimeControl "180+1"]
[EndTime "15:39:02 PDT"]
[Termination "Mikhal867 won by resignation"]

1. e4 {[%clk 0:02:51.7]} 1... c5 {[%clk 0:02:59.7]} 2. Nf3 {[%clk 0:02:50.8]}
2... Nc6 {[%clk 0:02:59]} 3. d4 {[%clk 0:02:47.6]} 3... cxd4 {[%clk 0:02:59.9]}
4. Nxd4 {[%clk 0:02:47.8]} 4... e5 {[%clk 0:03:00.2]} 5. Nb5 {[%clk 0:02:47.3]}
5... a6 {[%clk 0:02:58.4]} 6. Nd6+ {[%clk 0:02:47.2]} 6... Bxd6 {[%clk 0:02:59]}
7. Qxd6 {[%clk 0:02:46.5]} 7... Qf6 {[%clk 0:02:59.9]} 8. Qxf6 {[%clk
0:02:42.1]} 8... Nxf6 {[%clk 0:03:00.8]} 9. Nc3 {[%clk 0:02:42.2]} 9... O-O
{[%clk 0:03:00.3]} 10. Bg5 {[%clk 0:02:37.7]} 10... Nd4 {[%clk 0:02:57.8]} 11.
O-O-O {[%clk 0:02:36.9]} 11... d6 {[%clk 0:02:52]} 12. Bxf6 {[%clk 0:02:28.3]}
12... gxf6 {[%clk 0:02:52.9]} 13. Nd5 {[%clk 0:02:24.3]} 13... Be6 {[%clk
0:02:51.2]} 14. Nxf6+ {[%clk 0:02:19.2]} 14... Kg7 {[%clk 0:02:50.9]} 15. Nd5
{[%clk 0:02:19.2]} 15... Bxd5 {[%clk 0:02:50.6]} 16. exd5 {[%clk 0:02:18.9]}
16... Rac8 {[%clk 0:02:50]} 17. c3 {[%clk 0:02:18.7]} 17... Rc5 {[%clk
0:02:48.3]} 18. Kb1 {[%clk 0:02:16.6]} 18... Nf5 {[%clk 0:02:48]} 19. h4 {[%clk
0:01:48.8]} 19... Ne7 {[%clk 0:02:24.5]} 20. Rh3 {[%clk 0:01:48.1]} 20... Rfc8
{[%clk 0:02:14.5]} 21. Rhd3 {[%clk 0:01:42.6]} 21... f5 {[%clk 0:02:10.4]} 22.
g3 {[%clk 0:01:39.8]} 22... e4 {[%clk 0:02:10.4]} 23. Rd4 {[%clk 0:01:38.5]}
23... Kf6 {[%clk 0:02:10.5]} 24. Be2 {[%clk 0:01:34.3]} 24... Ke5 {[%clk
0:02:07.5]} 25. f4+ {[%clk 0:01:11.6]} 25... Kf6 {[%clk 0:02:04.9]} 26. g4
{[%clk 0:01:08]} 26... Ng6 {[%clk 0:01:59.1]} 27. gxf5 {[%clk 0:00:45.5]} 27...
Kxf5 {[%clk 0:01:59.1]} 28. Rg1 {[%clk 0:00:44.9]} 28... Nxf4 {[%clk 0:01:56.5]}
29. Bg4+ {[%clk 0:00:43.8]} 29... Ke5 {[%clk 0:01:55.1]} 30. Bxc8 {[%clk
0:00:42.1]} 30... Rxc8 {[%clk 0:01:54.1]} 31. Rg5+ {[%clk 0:00:40.1]} 31... Kf6
{[%clk 0:01:53.9]} 32. Rxe4 {[%clk 0:00:40.2]} 32... Nd3 {[%clk 0:01:46.2]} 33.
Re6+ {[%clk 0:00:39.7]} 33... Kf7 {[%clk 0:01:46.8]} 34. Rxd6 {[%clk 0:00:39.9]}
1-0

[Event "Late-Titled-Tuesday-Blitz-October-17-2023"]
[Site "Chess.com"]
[Date "2023.10.17"]
[Round "9"]
[White "Real_taiatai"]
[Black "TanitoluwaAps116"]
[Result "0-1"]
[WhiteElo "2441"]
[BlackElo "2615"]
[TimeControl "180+1"]
[EndTime "15:39:23 PDT"]
[Termination "TanitoluwaAps116 won by checkmate"]

1. d4 {[%clk 0:03:00.9]} 1... f6 {[%clk 0:02:44.7]} 2. e4 {[%clk 0:02:57.7]}
2... e6 {[%clk 0:02:40.9]} 3. Nc3 {[%clk 0:02:57.3]} 3... d5 {[%clk 0:02:34.7]}
4. Nf3 {[%clk 0:02:50.5]} 4... Bb4 {[%clk 0:02:31.3]} 5. e5 {[%clk 0:02:46.9]}
5... fxe5 {[%clk 0:02:28.4]} 6. Nxe5 {[%clk 0:02:46.4]} 6... Nf6 {[%clk
0:02:28.4]} 7. Bg5 {[%clk 0:02:39.1]} 7... O-O {[%clk 0:02:28.1]} 8. Bd3 {[%clk
0:02:37]} 8... c5 {[%clk 0:02:28.1]} 9. a3 {[%clk 0:02:30.8]} 9... Ba5 {[%clk
0:02:09.8]} 10. O-O {[%clk 0:01:50.4]} 10... cxd4 {[%clk 0:02:02.8]} 11. Nb5
{[%clk 0:01:49.9]} 11... Nc6 {[%clk 0:01:59.3]} 12. Nxc6 {[%clk 0:01:48.1]}
12... bxc6 {[%clk 0:02:00.2]} 13. Nxd4 {[%clk 0:01:48.7]} 13... Bc7 {[%clk
0:01:56]} 14. Re1 {[%clk 0:01:39.3]} 14... Qd6 {[%clk 0:01:44.5]} 15. f4 {[%clk
0:01:34]} 15... h6 {[%clk 0:01:40.6]} 16. Bxf6 {[%clk 0:01:18.1]} 16... Qxf4
{[%clk 0:01:26.3]} 17. Nf3 {[%clk 0:00:25.1]} 17... Qxf6 {[%clk 0:01:18.6]} 18.
Qe2 {[%clk 0:00:18.9]} 18... Qxb2 {[%clk 0:01:13.2]} 19. Nh4 {[%clk 0:00:12]}
19... Qd4+ {[%clk 0:01:11.5]} 20. Kh1 {[%clk 0:00:10.4]} 20... Qxh4 {[%clk
0:01:11.4]} 21. Rf1 {[%clk 0:00:10.8]} 21... Qxh2# {[%clk 0:01:10.9]} 0-1